[Event "Early Titled Tuesday Blitz | February 8 2022"]
[White "Varney, Zoe"]
[Black "Farmani Anosheh, Armin"]
[WhiteFideId "436135"]
[BlackFideId "24613240"]
[WhiteElo "1808"]
[BlackElo "2289"]
[Result "0-1"]
[Round "02"]
[TimeControl "180+1"]
[Date "2022.02.08"]
[WhiteClock "0:00:09"]
[BlackClock "0:01:37"]

1. e4 {[%clk 0:03:00]}  c5 {[%clk 0:02:59]} 2. Nf3 {[%clk 0:03:00]}  d6 {[%clk 0:02:59]} 3. d4 {[%clk 0:02:58]}  cxd4 {[%clk 0:03:00]} 4. Nxd4 {[%clk 0:02:58]}  Nf6 {[%clk 0:03:01]} 5. Nc3 {[%clk 0:02:58]}  Nc6 {[%clk 0:03:02]} 6. Be3 {[%clk 0:02:52]}  Ng4 {[%clk 0:03:01]} 7. Nxc6 {[%clk 0:02:33]}  Nxe3 {[%clk 0:02:50]} 8. Nxd8 {[%clk 0:02:28]}  Nxd1 {[%clk 0:02:50]} 9. Nxf7 {[%clk 0:02:11]}  Nxc3 {[%clk 0:02:48]} 10. Nxh8 {[%clk 0:02:11]}  Nxe4 {[%clk 0:02:31]} 11. Bc4 {[%clk 0:01:34]}  e6 {[%clk 0:02:30]} 12. O-O {[%clk 0:01:24]}  g6 {[%clk 0:02:06]} 13. Rfe1 {[%clk 0:01:07]}  d5 {[%clk 0:02:06]} 14. Bb5+ {[%clk 0:00:51]}  Ke7 {[%clk 0:02:05]} 15. f3 {[%clk 0:00:37]}  Nd6 {[%clk 0:02:05]} 16. Bd3 {[%clk 0:00:34]}  Kf6 {[%clk 0:01:58]} 17. Rad1 {[%clk 0:00:18]}  Bg7 {[%clk 0:01:56]} 18. Nxg6 {[%clk 0:00:18]}  hxg6 {[%clk 0:01:56]} 19. b3 {[%clk 0:00:18]}  b6 {[%clk 0:01:53]} 20. c4 {[%clk 0:00:18]}  Bb7 {[%clk 0:01:53]} 21. cxd5 {[%clk 0:00:17]}  Bxd5 {[%clk 0:01:54]} 22. Be4 {[%clk 0:00:16]}  Nxe4 {[%clk 0:01:47]} 23. fxe4 {[%clk 0:00:15]}  Bc6 {[%clk 0:01:47]} 24. Rd6 {[%clk 0:00:15]}  Be8 {[%clk 0:01:45]} 25. e5+ {[%clk 0:00:11]}  Ke7 {[%clk 0:01:45]} 26. Rc1 {[%clk 0:00:10]}  Bxe5 {[%clk 0:01:42]} 27. Rd2 {[%clk 0:00:09]}  Bf4 {[%clk 0:01:37]} 0-1


[Site "https://www.chess.com"]

[Event "Early Titled Tuesday Blitz | February 8 2022"]
[White "Volkov, Sergey"]
[Black "Kukula, Pawel"]
[WhiteFideId "4122763"]
[BlackFideId "1115081"]
[WhiteElo "2475"]
[BlackElo "2203"]
[Result "1-0"]
[Round "02"]
[TimeControl "180+1"]
[Date "2022.02.08"]
[WhiteClock "0:00:16"]
[BlackClock "0:00:25"]

1. d4 {[%clk 0:03:00]}  f5 {[%clk 0:02:55]} 2. Nc3 {[%clk 0:03:00]}  d5 {[%clk 0:02:54]} 3. Bg5 {[%clk 0:02:59]}  c6 {[%clk 0:02:43]} 4. e3 {[%clk 0:02:57]}  Qb6 {[%clk 0:02:42]} 5. a3 {[%clk 0:02:53]}  e6 {[%clk 0:02:42]} 6. Nf3 {[%clk 0:02:47]}  Bd6 {[%clk 0:02:40]} 7. Bd3 {[%clk 0:02:40]}  Nd7 {[%clk 0:02:39]} 8. O-O {[%clk 0:02:38]}  Ngf6 {[%clk 0:02:39]} 9. Bf4 {[%clk 0:02:35]}  Qc7 {[%clk 0:02:36]} 10. g3 {[%clk 0:02:27]}  O-O {[%clk 0:02:36]} 11. Ne2 {[%clk 0:02:20]}  Ne4 {[%clk 0:02:36]} 12. c4 {[%clk 0:02:18]}  Ndf6 {[%clk 0:02:10]} 13. Rc1 {[%clk 0:02:15]}  Qe7 {[%clk 0:02:05]} 14. b4 {[%clk 0:02:10]}  Ng4 {[%clk 0:02:00]} 15. c5 {[%clk 0:02:01]}  Bxf4 {[%clk 0:01:56]} 16. exf4 {[%clk 0:02:00]}  Bd7 {[%clk 0:01:53]} 17. h3 {[%clk 0:01:57]}  Ngf6 {[%clk 0:01:50]} 18. Ne5 {[%clk 0:01:52]}  Be8 {[%clk 0:01:50]} 19. f3 {[%clk 0:01:45]}  Bh5 {[%clk 0:01:47]} 20. fxe4 {[%clk 0:01:33]}  fxe4 {[%clk 0:01:47]} 21. Bb1 {[%clk 0:01:29]}  Nd7 {[%clk 0:01:25]} 22. Nxd7 {[%clk 0:01:20]}  Qxd7 {[%clk 0:01:26]} 23. g4 {[%clk 0:01:18]}  Bg6 {[%clk 0:01:24]} 24. Ng3 {[%clk 0:01:16]}  h6 {[%clk 0:01:21]} 25. Qd2 {[%clk 0:01:12]}  Rf7 {[%clk 0:01:19]} 26. Kg2 {[%clk 0:01:09]}  Raf8 {[%clk 0:01:19]} 27. Rf2 {[%clk 0:01:05]}  Qc7 {[%clk 0:01:19]} 28. Rcf1 {[%clk 0:01:03]}  b6 {[%clk 0:01:20]} 29. Ne2 {[%clk 0:00:38]}  bxc5 {[%clk 0:01:07]} 30. dxc5 {[%clk 0:00:37]}  e5 {[%clk 0:00:53]} 31. f5 {[%clk 0:00:36]}  Bh7 {[%clk 0:00:53]} 32. Ng3 {[%clk 0:00:34]}  Kh8 {[%clk 0:00:35]} 33. Qe3 {[%clk 0:00:31]}  Bg8 {[%clk 0:00:32]} 34. h4 {[%clk 0:00:27]}  Qd8 {[%clk 0:00:31]} 35. g5 {[%clk 0:00:26]}  d4 {[%clk 0:00:29]} 36. Qxe4 {[%clk 0:00:22]}  Rxf5 {[%clk 0:00:27]} 37. Rxf5 {[%clk 0:00:21]}  Rxf5 {[%clk 0:00:26]} 38. Qxf5 {[%clk 0:00:21]}  d3 {[%clk 0:00:26]} 39. Qxd3 {[%clk 0:00:20]}  Bd5+ {[%clk 0:00:26]} 40. Kg1 {[%clk 0:00:19]}  e4 {[%clk 0:00:26]} 41. Nxe4 {[%clk 0:00:19]}  Qe7 {[%clk 0:00:27]} 42. Ng3 {[%clk 0:00:17]}  Bg8 {[%clk 0:00:27]} 43. gxh6 {[%clk 0:00:16]}  Qxh4 {[%clk 0:00:24]} 44. hxg7+ {[%clk 0:00:16]}  Kxg7 {[%clk 0:00:25]} 45. Nf5+ {[%clk 0:00:16]} 1-0


[Site "https://www.chess.com"]

[Event "Early Titled Tuesday Blitz | February 8 2022"]
[White "Wagner, Dennis"]
[Black "Lopez Gracia, Fernando"]
[WhiteFideId "24650684"]
[BlackFideId "2207184"]
[WhiteElo "2355"]
[BlackElo "2382"]
[Result "0-1"]
[Round "02"]
[TimeControl "180+1"]
[Date "2022.02.08"]
[WhiteClock "0:00:34"]
[BlackClock "0:00:54"]

1. d4 {[%clk 0:03:00]}  Nf6 {[%clk 0:02:59]} 2. c4 {[%clk 0:03:00]}  e6 {[%clk 0:02:59]} 3. Nc3 {[%clk 0:03:01]}  Bb4 {[%clk 0:02:59]} 4. a3 {[%clk 0:03:02]}  Bxc3+ {[%clk 0:02:59]} 5. bxc3 {[%clk 0:03:03]}  c5 {[%clk 0:02:52]} 6. f3 {[%clk 0:03:01]}  d6 {[%clk 0:02:50]} 7. e4 {[%clk 0:03:01]}  Nc6 {[%clk 0:02:49]} 8. Ne2 {[%clk 0:03:01]}  e5 {[%clk 0:02:45]} 9. Be3 {[%clk 0:02:59]}  b6 {[%clk 0:02:44]} 10. d5 {[%clk 0:02:29]}  Na5 {[%clk 0:02:42]} 11. Ng3 {[%clk 0:02:00]}  Ba6 {[%clk 0:02:38]} 12. Nf5 {[%clk 0:01:51]}  O-O {[%clk 0:02:34]} 13. Bg5 {[%clk 0:01:33]}  h6 {[%clk 0:02:28]} 14. Bh4 {[%clk 0:01:30]}  Kh7 {[%clk 0:02:26]} 15. g4 {[%clk 0:01:22]}  Bxc4 {[%clk 0:01:57]} 16. Bxc4 {[%clk 0:01:06]}  Nxc4 {[%clk 0:01:58]} 17. Qe2 {[%clk 0:01:06]}  b5 {[%clk 0:01:57]} 18. g5 {[%clk 0:01:03]}  Nh5 {[%clk 0:01:52]} 19. g6+ {[%clk 0:01:02]}  fxg6 {[%clk 0:01:48]} 20. Bxd8 {[%clk 0:01:02]}  gxf5 {[%clk 0:01:48]} 21. Bh4 {[%clk 0:00:52]}  Nf4 {[%clk 0:01:42]} 22. Qa2 {[%clk 0:00:43]}  fxe4 {[%clk 0:01:26]} 23. O-O {[%clk 0:00:39]}  e3 {[%clk 0:01:06]} 24. Rfe1 {[%clk 0:00:38]}  g5 {[%clk 0:01:01]} 25. Bg3 {[%clk 0:00:38]}  Nd3 {[%clk 0:00:59]} 26. Qc2 {[%clk 0:00:36]}  e4 {[%clk 0:00:57]} 27. fxe4 {[%clk 0:00:34]}  Nxe1 {[%clk 0:00:55]} 28. e5+ {[%clk 0:00:34]}  Nxc2 {[%clk 0:00:54]} 0-1


[Site "https://www.chess.com"]

[Event "Early Titled Tuesday Blitz | February 8 2022"]
[White "Winkels, Marcel"]
[Black "Aaditya Dhingra"]
[WhiteFideId "1003887"]
[BlackFideId "25678191"]
[WhiteElo "1900"]
[BlackElo "1789"]
[Result "0-1"]
[Round "02"]
[TimeControl "180+1"]
[Date "2022.02.08"]
[WhiteClock "0:00:02"]
[BlackClock "0:00:24"]

1. e4 {[%clk 0:03:00]}  c6 {[%clk 0:02:57]} 2. d4 {[%clk 0:02:59]}  d5 {[%clk 0:02:57]} 3. e5 {[%clk 0:03:00]}  c5 {[%clk 0:02:55]} 4. dxc5 {[%clk 0:02:59]}  Nc6 {[%clk 0:02:52]} 5. Nf3 {[%clk 0:02:58]}  e6 {[%clk 0:02:28]} 6. a3 {[%clk 0:02:56]}  Bxc5 {[%clk 0:02:23]} 7. b4 {[%clk 0:02:56]}  Bb6 {[%clk 0:02:20]} 8. Bd3 {[%clk 0:02:56]}  Nge7 {[%clk 0:02:17]} 9. Bb2 {[%clk 0:02:54]}  Ng6 {[%clk 0:02:13]} 10. Qd2 {[%clk 0:02:39]}  Bc7 {[%clk 0:02:04]} 11. Bxg6 {[%clk 0:02:25]}  hxg6 {[%clk 0:02:02]} 12. O-O {[%clk 0:02:23]}  g5 {[%clk 0:01:52]} 13. Qxg5 {[%clk 0:02:11]}  Qxg5 {[%clk 0:01:48]} 14. Nxg5 {[%clk 0:02:11]}  Nxe5 {[%clk 0:01:40]} 15. f4 {[%clk 0:02:03]}  Ng4 {[%clk 0:01:34]} 16. h3 {[%clk 0:01:33]}  Bb6+ {[%clk 0:01:32]} 17. Kh1 {[%clk 0:01:29]}  f6 {[%clk 0:01:22]} 18. Nf3 {[%clk 0:01:25]}  Ne3 {[%clk 0:01:21]} 19. Rc1 {[%clk 0:01:12]}  e5 {[%clk 0:01:20]} 20. fxe5 {[%clk 0:00:48]}  Bxh3 {[%clk 0:01:10]} 21. gxh3 {[%clk 0:00:46]}  Rxh3+ {[%clk 0:01:09]} 22. Nh2 {[%clk 0:00:45]}  O-O-O {[%clk 0:00:40]} 23. Nd2 {[%clk 0:00:44]}  Rdh8 {[%clk 0:00:31]} 24. exf6 {[%clk 0:00:03]}  Rxh2+ {[%clk 0:00:30]} 25. Kg1 {[%clk 0:00:02]}  Rxd2 {[%clk 0:00:24]} 0-1


[Site "https://www.chess.com"]

[Event "Early Titled Tuesday Blitz | February 8 2022"]
[White "Yeletsky, Ivan"]
[Black "Popadic, Dragan"]
[WhiteFideId "24180327"]
[BlackFideId "913650"]
[WhiteElo "2348"]
[BlackElo "2199"]
[Result "1-0"]
[Round "02"]
[TimeControl "180+1"]
[Date "2022.02.08"]
[WhiteClock "0:00:13"]
[BlackClock "0:00:47"]

1. g3 {[%clk 0:03:00]}  Nf6 {[%clk 0:02:59]} 2. Bg2 {[%clk 0:03:00]}  g6 {[%clk 0:02:59]} 3. e4 {[%clk 0:03:00]}  d6 {[%clk 0:02:58]} 4. f4 {[%clk 0:03:00]}  Bg7 {[%clk 0:02:57]} 5. Nc3 {[%clk 0:03:00]}  O-O {[%clk 0:02:57]} 6. d3 {[%clk 0:02:59]}  c5 {[%clk 0:02:57]} 7. Nf3 {[%clk 0:02:56]}  Nc6 {[%clk 0:02:57]} 8. O-O {[%clk 0:02:56]}  Nd4 {[%clk 0:02:56]} 9. h3 {[%clk 0:02:52]}  Nxf3+ {[%clk 0:02:52]} 10. Qxf3 {[%clk 0:02:52]}  Bd7 {[%clk 0:02:52]} 11. e5 {[%clk 0:02:46]}  Bc6 {[%clk 0:02:46]} 12. exf6 {[%clk 0:02:43]}  Bxf3 {[%clk 0:02:46]} 13. fxg7 {[%clk 0:02:43]}  Kxg7 {[%clk 0:02:37]} 14. Bxf3 {[%clk 0:02:43]}  Rb8 {[%clk 0:02:36]} 15. b3 {[%clk 0:02:32]}  b5 {[%clk 0:02:35]} 16. Bb2 {[%clk 0:02:30]}  Kg8 {[%clk 0:02:36]} 17. a4 {[%clk 0:02:23]}  a6 {[%clk 0:02:33]} 18. axb5 {[%clk 0:02:22]}  axb5 {[%clk 0:02:33]} 19. Nd5 {[%clk 0:02:18]}  c4 {[%clk 0:02:29]} 20. Ra7 {[%clk 0:02:09]}  Re8 {[%clk 0:02:28]} 21. Re1 {[%clk 0:02:06]}  cxd3 {[%clk 0:02:27]} 22. Rexe7 {[%clk 0:01:45]}  Rxe7 {[%clk 0:02:24]} 23. Nxe7+ {[%clk 0:01:46]}  Kf8 {[%clk 0:02:19]} 24. Nc6 {[%clk 0:01:44]}  Qb6+ {[%clk 0:02:19]} 25. Bd4 {[%clk 0:01:41]}  dxc2 {[%clk 0:02:08]} 26. Ra1 {[%clk 0:01:41]}  Qc7 {[%clk 0:01:52]} 27. Rc1 {[%clk 0:01:41]}  Re8 {[%clk 0:01:44]} 28. Rxc2 {[%clk 0:01:39]}  Qd7 {[%clk 0:01:45]} 29. Kg2 {[%clk 0:01:36]}  Qf5 {[%clk 0:01:44]} 30. Rd2 {[%clk 0:01:26]}  Qb1 {[%clk 0:01:44]} 31. Bf2 {[%clk 0:01:24]}  Qxb3 {[%clk 0:01:41]} 32. Rxd6 {[%clk 0:01:24]}  Qc3 {[%clk 0:01:35]} 33. Ne5 {[%clk 0:01:19]}  b4 {[%clk 0:01:32]} 34. Rd7 {[%clk 0:00:59]}  Re7 {[%clk 0:01:31]} 35. Rd8+ {[%clk 0:00:55]}  Kg7 {[%clk 0:01:31]} 36. Nc6 {[%clk 0:00:50]}  Re3 {[%clk 0:01:21]} 37. Bxe3 {[%clk 0:00:49]}  Qxe3 {[%clk 0:01:21]} 38. Nxb4 {[%clk 0:00:41]}  Qb6 {[%clk 0:01:21]} 39. Nc6 {[%clk 0:00:38]}  Qb2+ {[%clk 0:01:20]} 40. Kf1 {[%clk 0:00:37]}  Qc3 {[%clk 0:01:15]} 41. Kf2 {[%clk 0:00:37]}  Qc2+ {[%clk 0:01:13]} 42. Ke3 {[%clk 0:00:36]}  Qh2 {[%clk 0:01:11]} 43. g4 {[%clk 0:00:34]}  Qxh3 {[%clk 0:01:10]} 44. Rd7 {[%clk 0:00:27]}  Qf1 {[%clk 0:01:09]} 45. Ne5 {[%clk 0:00:26]}  Qe1+ {[%clk 0:01:09]} 46. Be2 {[%clk 0:00:23]}  Qg3+ {[%clk 0:01:07]} 47. Ke4 {[%clk 0:00:23]}  Qg2+ {[%clk 0:01:07]} 48. Bf3 {[%clk 0:00:18]}  Qc2+ {[%clk 0:01:06]} 49. Ke3 {[%clk 0:00:17]}  Qc1+ {[%clk 0:01:06]} 50. Kf2 {[%clk 0:00:14]}  Qxf4 {[%clk 0:01:05]} 51. Rxf7+ {[%clk 0:00:14]}  Qxf7 {[%clk 0:01:05]} 52. Nxf7 {[%clk 0:00:14]}  Kxf7 {[%clk 0:01:06]} 53. Kg3 {[%clk 0:00:14]}  Kf6 {[%clk 0:01:06]} 54. Kh4 {[%clk 0:00:14]}  h6 {[%clk 0:01:06]} 55. Bd1 {[%clk 0:00:11]}  Ke6 {[%clk 0:01:05]} 56. Bc2 {[%clk 0:00:10]}  Kf6 {[%clk 0:01:05]} 57. Bd3 {[%clk 0:00:10]}  Kf7 {[%clk 0:01:05]} 58. Kg3 {[%clk 0:00:08]}  Kf6 {[%clk 0:01:04]} 59. Kf4 {[%clk 0:00:09]}  g5+ {[%clk 0:00:56]} 60. Kg3 {[%clk 0:00:09]}  Ke5 {[%clk 0:00:54]} 61. Bg6 {[%clk 0:00:08]}  Kf6 {[%clk 0:00:54]} 62. Bh5 {[%clk 0:00:09]}  Ke5 {[%clk 0:00:53]} 63. Kf3 {[%clk 0:00:10]}  Kd4 {[%clk 0:00:53]} 64. Kf2 {[%clk 0:00:10]}  Ke4 {[%clk 0:00:52]} 65. Ke2 {[%clk 0:00:10]}  Kf4 {[%clk 0:00:52]} 66. Kd3 {[%clk 0:00:10]}  Ke5 {[%clk 0:00:52]} 67. Ke3 {[%clk 0:00:11]}  Kd5 {[%clk 0:00:51]} 68. Kd3 {[%clk 0:00:11]}  Ke5 {[%clk 0:00:52]} 69. Kc4 {[%clk 0:00:12]}  Ke6 {[%clk 0:00:52]} 70. Kd4 {[%clk 0:00:11]}  Kd6 {[%clk 0:00:51]} 71. Ke4 {[%clk 0:00:11]}  Ke6 {[%clk 0:00:51]} 72. Kd4 {[%clk 0:00:09]}  Kd6 {[%clk 0:00:51]} 73. Kc4 {[%clk 0:00:10]}  Kc6 {[%clk 0:00:49]} 74. Bg6 {[%clk 0:00:10]}  Kd6 {[%clk 0:00:49]} 75. Kb5 {[%clk 0:00:10]}  Kd5 {[%clk 0:00:47]} 76. Bh5 {[%clk 0:00:10]}  Kd6 {[%clk 0:00:47]} 77. Kb6 {[%clk 0:00:10]}  Kd7 {[%clk 0:00:47]} 78. Kc5 {[%clk 0:00:11]}  Ke6 {[%clk 0:00:46]} 79. Kc6 {[%clk 0:00:11]}  Ke7 {[%clk 0:00:46]} 80. Kc7 {[%clk 0:00:09]}  Ke6 {[%clk 0:00:46]} 81. Kd8 {[%clk 0:00:09]}  Kf6 {[%clk 0:00:47]} 82. Ke8 {[%clk 0:00:09]}  Kg7 {[%clk 0:00:47]} 83. Ke7 {[%clk 0:00:09]}  Kg8 {[%clk 0:00:46]} 84. Kf6 {[%clk 0:00:10]}  Kh7 {[%clk 0:00:47]} 85. Kf7 {[%clk 0:00:10]}  Kh8 {[%clk 0:00:47]} 86. Kg6 {[%clk 0:00:11]}  Kg8 {[%clk 0:00:47]} 87. Kxh6 {[%clk 0:00:12]}  Kf8 {[%clk 0:00:47]} 88. Kxg5 {[%clk 0:00:13]}  Kg7 {[%clk 0:00:47]} 89. Kf5 {[%clk 0:00:13]} 1-0


[Site "https://www.chess.com"]

[Event "Early Titled Tuesday Blitz | February 8 2022"]
[White "parintele_chess"]
[Black "Pakleza, Zbigniew"]
[BlackFideId "1119290"]
[WhiteElo "2240"]
[BlackElo "2467"]
[Result "0-1"]
[Round "02"]
[TimeControl "180+1"]
[Date "2022.02.08"]
[WhiteClock "0:00:04"]
[BlackClock "0:00:25"]

1. d4 {[%clk 0:02:59]}  d6 {[%clk 0:02:58]} 2. e4 {[%clk 0:02:50]}  Nf6 {[%clk 0:02:58]} 3. Nc3 {[%clk 0:02:49]}  c6 {[%clk 0:02:59]} 4. Bg5 {[%clk 0:02:49]}  Qb6 {[%clk 0:02:59]} 5. a3 {[%clk 0:02:45]}  e5 {[%clk 0:02:58]} 6. dxe5 {[%clk 0:02:41]}  dxe5 {[%clk 0:02:51]} 7. Nf3 {[%clk 0:02:30]}  Nbd7 {[%clk 0:02:51]} 8. Bc4 {[%clk 0:02:28]}  Be7 {[%clk 0:02:50]} 9. O-O {[%clk 0:02:26]}  O-O {[%clk 0:02:50]} 10. h3 {[%clk 0:02:20]}  h6 {[%clk 0:02:45]} 11. Be3 {[%clk 0:02:20]}  Qc7 {[%clk 0:02:45]} 12. Qe2 {[%clk 0:02:17]}  b5 {[%clk 0:02:44]} 13. Ba2 {[%clk 0:02:16]}  Re8 {[%clk 0:02:41]} 14. Rad1 {[%clk 0:02:16]}  a5 {[%clk 0:02:37]} 15. a4 {[%clk 0:02:02]}  b4 {[%clk 0:02:32]} 16. Nb1 {[%clk 0:02:01]}  Nc5 {[%clk 0:02:22]} 17. Nbd2 {[%clk 0:01:51]}  Nxa4 {[%clk 0:02:15]} 18. Nc4 {[%clk 0:01:39]}  Ba6 {[%clk 0:02:08]} 19. Bb3 {[%clk 0:01:34]}  Nc5 {[%clk 0:02:06]} 20. Bxc5 {[%clk 0:01:33]}  Bxc5 {[%clk 0:02:07]} 21. Rd3 {[%clk 0:01:23]}  a4 {[%clk 0:01:59]} 22. Ba2 {[%clk 0:01:19]}  Rab8 {[%clk 0:01:47]} 23. Ncxe5 {[%clk 0:01:08]}  b3 {[%clk 0:01:39]} 24. cxb3 {[%clk 0:01:07]}  axb3 {[%clk 0:01:39]} 25. Bxb3 {[%clk 0:01:00]}  Rxb3 {[%clk 0:01:30]} 26. Qc2 {[%clk 0:00:55]}  Rxd3 {[%clk 0:01:13]} 27. Nxd3 {[%clk 0:00:55]}  Bf8 {[%clk 0:01:09]} 28. Re1 {[%clk 0:00:49]}  Rxe4 {[%clk 0:01:03]} 29. Rxe4 {[%clk 0:00:45]}  Nxe4 {[%clk 0:01:04]} 30. Nde5 {[%clk 0:00:46]}  Ng5 {[%clk 0:00:48]} 31. Nxg5 {[%clk 0:00:28]}  hxg5 {[%clk 0:00:49]} 32. Qf5 {[%clk 0:00:26]}  Bc8 {[%clk 0:00:37]} 33. Qe4 {[%clk 0:00:18]}  c5 {[%clk 0:00:36]} 34. b3 {[%clk 0:00:13]}  Qe7 {[%clk 0:00:27]} 35. Qd5 {[%clk 0:00:08]}  Qe6 {[%clk 0:00:25]} 36. Qxe6 {[%clk 0:00:04]}  Bxe6 {[%clk 0:00:25]} 0-1


[Site "https://www.chess.com"]

[Event "Early Titled Tuesday Blitz | February 8 2022"]
[White "Abdusattorov, Nodirbek"]
[Black "Izoria, Zviad"]
[WhiteFideId "14204118"]
[BlackFideId "13601733"]
[WhiteElo "2663"]
[BlackElo "2626"]
[Result "1/2-1/2"]
[Round "03"]
[TimeControl "180+1"]
[Date "2022.02.08"]
[WhiteClock "0:00:10"]
[BlackClock "0:00:13"]

1. e4 {[%clk 0:03:00]}  c6 {[%clk 0:02:57]} 2. d4 {[%clk 0:02:58]}  d5 {[%clk 0:02:57]} 3. exd5 {[%clk 0:02:57]}  cxd5 {[%clk 0:02:56]} 4. Bd3 {[%clk 0:02:58]}  Nc6 {[%clk 0:02:53]} 5. c3 {[%clk 0:02:56]}  Qc7 {[%clk 0:02:46]} 6. h3 {[%clk 0:02:53]}  e6 {[%clk 0:02:43]} 7. Nf3 {[%clk 0:02:48]}  Bd6 {[%clk 0:02:42]} 8. O-O {[%clk 0:02:47]}  Nge7 {[%clk 0:02:41]} 9. Re1 {[%clk 0:02:42]}  Bd7 {[%clk 0:02:30]} 10. Nbd2 {[%clk 0:02:19]}  f6 {[%clk 0:02:19]} 11. c4 {[%clk 0:02:10]}  O-O {[%clk 0:02:11]} 12. a3 {[%clk 0:01:58]}  a5 {[%clk 0:02:08]} 13. Nb1 {[%clk 0:01:47]}  dxc4 {[%clk 0:01:23]} 14. Bxc4 {[%clk 0:01:48]}  Nd5 {[%clk 0:01:24]} 15. Nc3 {[%clk 0:01:37]}  Nce7 {[%clk 0:01:23]} 16. Qb3 {[%clk 0:01:36]}  a4 {[%clk 0:01:18]} 17. Qa2 {[%clk 0:01:35]}  Rac8 {[%clk 0:01:07]} 18. Nxd5 {[%clk 0:01:28]}  Nxd5 {[%clk 0:01:08]} 19. Bxd5 {[%clk 0:01:26]}  exd5 {[%clk 0:01:08]} 20. Qxd5+ {[%clk 0:01:27]}  Kh8 {[%clk 0:01:09]} 21. Bd2 {[%clk 0:01:25]}  Bc6 {[%clk 0:01:08]} 22. Qf5 {[%clk 0:01:18]}  Qf7 {[%clk 0:01:04]} 23. Rac1 {[%clk 0:01:13]}  Rcd8 {[%clk 0:00:58]} 24. Bc3 {[%clk 0:01:05]}  Bd5 {[%clk 0:00:46]} 25. Nd2 {[%clk 0:01:04]}  g6 {[%clk 0:00:45]} 26. Qd3 {[%clk 0:01:04]}  Bf4 {[%clk 0:00:25]} 27. Re2 {[%clk 0:00:55]}  Bxd2 {[%clk 0:00:24]} 28. Qxd2 {[%clk 0:00:53]}  Rfe8 {[%clk 0:00:23]} 29. Rce1 {[%clk 0:00:53]}  Kg7 {[%clk 0:00:20]} 30. Bb4 {[%clk 0:00:52]}  Rxe2 {[%clk 0:00:20]} 31. Qxe2 {[%clk 0:00:51]}  Rd7 {[%clk 0:00:19]} 32. Qe3 {[%clk 0:00:48]}  Bc6 {[%clk 0:00:19]} 33. f3 {[%clk 0:00:46]}  Qd5 {[%clk 0:00:18]} 34. Bc5 {[%clk 0:00:45]}  Qf7 {[%clk 0:00:16]} 35. Qf4 {[%clk 0:00:43]}  g5 {[%clk 0:00:16]} 36. Qb8 {[%clk 0:00:42]}  h6 {[%clk 0:00:15]} 37. Re8 {[%clk 0:00:39]}  Qd5 {[%clk 0:00:11]} 38. Rh8 {[%clk 0:00:32]}  Kg6 {[%clk 0:00:10]} 39. Qf8 {[%clk 0:00:30]}  Rg7 {[%clk 0:00:07]} 40. Qb8 {[%clk 0:00:18]}  Qf7 {[%clk 0:00:06]} 41. Qg3 {[%clk 0:00:15]}  Rh7 {[%clk 0:00:06]} 42. Rd8 {[%clk 0:00:14]}  Rg7 {[%clk 0:00:06]} 43. Rd6 {[%clk 0:00:14]}  Qc4 {[%clk 0:00:03]} 44. Qe5 {[%clk 0:00:13]}  Rf7 {[%clk 0:00:03]} 45. Kh2 {[%clk 0:00:12]}  Qc1 {[%clk 0:00:02]} 46. Bb6 {[%clk 0:00:08]}  Qf4+ {[%clk 0:00:01]} 47. Qxf4 {[%clk 0:00:08]}  gxf4 {[%clk 0:00:02]} 48. Bd8 {[%clk 0:00:08]}  Rd7 {[%clk 0:00:01]} 49. Rxf6+ {[%clk 0:00:08]}  Kg7 {[%clk 0:00:01]} 50. Rxf4 {[%clk 0:00:04]}  Rxd8 {[%clk 0:00:01]} 51. g4 {[%clk 0:00:04]}  Rd5 {[%clk 0:00:02]} 52. Kg3 {[%clk 0:00:04]}  Rb5 {[%clk 0:00:03]} 53. d5 {[%clk 0:00:03]}  Bxd5 {[%clk 0:00:02]} 54. Rd4 {[%clk 0:00:03]}  Bc6 {[%clk 0:00:02]} 55. Rd2 {[%clk 0:00:03]}  Rb3 {[%clk 0:00:02]} 56. Rf2 {[%clk 0:00:04]}  Kf6 {[%clk 0:00:03]} 57. Kf4 {[%clk 0:00:04]}  Kg6 {[%clk 0:00:02]} 58. h4 {[%clk 0:00:05]}  Kf6 {[%clk 0:00:03]} 59. h5 {[%clk 0:00:04]}  Rd3 {[%clk 0:00:02]} 60. Kg3 {[%clk 0:00:02]}  Kg5 {[%clk 0:00:02]} 61. Rf1 {[%clk 0:00:02]}  Rb3 {[%clk 0:00:03]} 62. Rf2 {[%clk 0:00:02]}  b5 {[%clk 0:00:03]} 63. Re2 {[%clk 0:00:02]}  Rxf3+ {[%clk 0:00:02]} 64. Kh2 {[%clk 0:00:03]}  Kxg4 {[%clk 0:00:03]} 65. Re6 {[%clk 0:00:03]}  Rf2+ {[%clk 0:00:03]} 66. Kg1 {[%clk 0:00:03]}  Rg2+ {[%clk 0:00:02]} 67. Kf1 {[%clk 0:00:04]}  Bf3 {[%clk 0:00:03]} 68. Rg6+ {[%clk 0:00:02]}  Kh3 {[%clk 0:00:03]} 69. Rxh6 {[%clk 0:00:03]}  Rxb2 {[%clk 0:00:03]} 70. Rh8 {[%clk 0:00:03]}  Be2+ {[%clk 0:00:03]} 71. Ke1 {[%clk 0:00:03]}  Bd3 {[%clk 0:00:03]} 72. h6 {[%clk 0:00:04]}  Rb1+ {[%clk 0:00:03]} 73. Kd2 {[%clk 0:00:04]}  Rh1 {[%clk 0:00:04]} 74. Kxd3 {[%clk 0:00:04]}  Kg4 {[%clk 0:00:03]} 75. Kc3 {[%clk 0:00:04]}  Kg5 {[%clk 0:00:03]} 76. Kb4 {[%clk 0:00:03]}  Rh3 {[%clk 0:00:02]} 77. h7 {[%clk 0:00:03]}  Kg6 {[%clk 0:00:01]} 78. Rg8+ {[%clk 0:00:02]}  Kxh7 {[%clk 0:00:02]} 79. Rg5 {[%clk 0:00:02]}  Rb3+ {[%clk 0:00:03]} 80. Ka5 {[%clk 0:00:02]}  Rxa3 {[%clk 0:00:04]} 81. Rxb5 {[%clk 0:00:03]}  Ra1 {[%clk 0:00:05]} 82. Kb4 {[%clk 0:00:03]}  a3 {[%clk 0:00:05]} 83. Ra5 {[%clk 0:00:03]}  a2 {[%clk 0:00:06]} 84. Kb3 {[%clk 0:00:04]}  Rb1+ {[%clk 0:00:06]} 85. Kxa2 {[%clk 0:00:04]}  Rb7 {[%clk 0:00:07]} 86. Ka3 {[%clk 0:00:05]}  Rg7 {[%clk 0:00:08]} 87. Ka4 {[%clk 0:00:06]}  Kg8 {[%clk 0:00:09]} 88. Rb5 {[%clk 0:00:06]}  Kh7 {[%clk 0:00:10]} 89. Ka5 {[%clk 0:00:07]}  Kh8 {[%clk 0:00:10]} 90. Ka6 {[%clk 0:00:08]}  Kh7 {[%clk 0:00:11]} 91. Rb7 {[%clk 0:00:09]}  Kh8 {[%clk 0:00:12]} 92. Rxg7 {[%clk 0:00:10]}  Kxg7 {[%clk 0:00:13]} 1/2-1/2


[Site "https://www.chess.com"]